bitfinex/quotes_ETHUSD_20240711
["timestamp","ask_amount","ask_price","bid_price","bid_amount"]
[1720663605628,0.04541536,3120.5,3119.6,3.44708]
[1720663606121,0.06660586,3120.4,3119.6,3.44708]
[1720663606543,0.33474035,3120.8,3119.6,3.44708]
[1720663606743,0.06663918,3120.3,3119.6,3.44708]
[1720663606954,0.33474035,3120.8,3119.6,3.44708]
[1720663606955,0.33474035,3120.8,3119.7,0.592888]
[1720663607124,0.06660117,3120.2,3119.7,0.592888]
[1720663607328,0.33474035,3120.8,3119.7,0.592888]
[1720663607546,3.373,3120.6,3119.3,0.113464]
[1720663607751,0.04541536,3120.5,3119.3,0.113464]
[1720663607958,0.1117178,3120.5,3119.3,0.113464]
[1720663608145,3.373,3120.4,3119.3,0.113464]
[1720663608326,3.48505723,3120.4,3119.3,0.113464]
[1720663608525,0.40350572,3120.3,3119.3,0.113464]
[1720663608831,0.06625821,3120.2,3119.3,0.113464]
[1720663609664,3.373,3120.4,3119.3,0.113464]
[1720663609827,0.06651174,3120.1,3119.3,0.113464]
[1720663610028,3.373,3120.4,3119.3,0.113464]
[1720663610227,0.06617132,3120.0,3119.3,0.6729904]
[1720663610434,0.33479521,3120.3,3119.3,0.6729904]
[1720663610681,0.06645769,3119.9,3119.3,0.113464]
[1720663610838,2.50001536,3120.0,3119.3,0.113464]
[1720663611041,0.06646135,3119.8,3119.3,0.113464]
[1720663611248,0.06647796,3119.9,3119.3,0.113464]
[1720663611437,0.06553437,3119.7,3119.3,0.113464]
[1720663611656,0.06551391,3119.8,3119.3,0.113464]
[1720663611828,0.06548066,3119.6,3119.3,0.113464]
[1720663612033,2.4546,3120.2,3119.3,0.113464]
[1720663612225,0.06546148,3119.5,3119.3,0.113464]
[1720663612430,0.27893952,3120.1,3119.3,0.113464]
[1720663612431,0.04541536,3120.0,3119.3,0.113464]
[1720663612626,0.06579155,3119.4,3119.3,0.113464]
[1720663612832,0.04541536,3120.0,3119.3,0.113464]
[1720663613328,0.06587463,3119.9,3119.3,0.113464]
[1720663613764,0.27893952,3120.1,3119.3,0.113464]
[1720663613965,0.06585801,3119.8,3119.3,0.113464]
[1720663614148,2.4546,3120.2,3119.3,0.113464]
[1720663614332,0.0658295,3119.7,3119.3,0.113464]
[1720663614554,0.33479521,3120.3,3119.3,2.580564]
[1720663614737,0.06581289,3119.6,3119.3,2.580564]
[1720663614937,3.33479521,3120.3,3119.4,0.2580564]
[1720663615154,0.06591256,3120.2,3119.3,2.580564]
[1720663615874,0.06591256,3120.2,3119.4,0.06411153]
[1720663616045,0.06591256,3120.2,3119.4,3.06411153]
[1720663616248,0.06591256,3120.2,3119.4,3.0]
[1720663617198,0.06591256,3120.2,3119.3,0.113464]
[1720663617199,2.43852792,3120.2,3119.3,0.113464]
[1720663617368,0.27733231,3120.1,3119.3,0.113464]
[1720663617576,0.04541536,3120.0,3119.3,0.113464]
[1720663617767,0.06576574,3120.0,3119.3,0.113464]
[1720663618355,0.04541536,3120.2,3119.3,0.113464]
[1720663618694,0.06582284,3119.9,3119.3,0.113464]
[1720663618900,0.33479521,3120.3,3119.3,0.113464]
[1720663619196,1.78280055,3120.2,3119.3,0.113464]
[1720663619409,1.15633639,3120.1,3119.3,0.113464]
[1720663619564,0.11124522,3120.1,3119.3,0.113464]
[1720663620227,0.06582986,3120.1,3119.3,0.113464]
[1720663620573,0.33479521,3120.3,3119.3,2.102464]
[1720663620783,0.06578353,3120.0,3119.4,0.2102464]
[1720663621097,0.33479521,3120.3,3119.4,0.2102464]
[1720663621398,0.33479521,3120.3,3119.3,2.102464]
[1720663621399,4.56037615,3120.2,3119.3,0.113464]
[1720663621559,4.54029211,3120.1,3119.3,0.113464]
[1720663621761,3.38557675,3120.0,3119.3,0.113464]
[1720663622109,1.84437502,3119.9,3119.3,0.113464]
[1720663622262,1.11087675,3119.8,3119.3,0.113464]
[1720663622595,0.04541536,3119.7,3119.3,0.113464]
[1720663622781,0.06543059,3119.7,3119.3,0.113464]
[1720663622982,0.68808291,3119.9,3119.3,0.113464]
[1720663622983,0.73349827,3119.9,3119.3,0.113464]
[1720663623169,0.06541396,3119.6,3119.3,0.113464]
[1720663623374,0.73349827,3119.9,3119.3,0.113464]
[1720663623575,0.06573735,3119.5,3119.3,0.113464]
[1720663623772,0.30081983,3119.8,3119.3,0.113464]
[1720663623989,0.06538071,3119.4,3119.3,0.113464]
[1720663624196,0.30081983,3119.8,3119.3,0.113464]
[1720663624486,0.06538071,3119.4,3119.3,0.113464]
[1720663624700,0.04541536,3119.7,3119.3,0.113464]
[1720663625188,1.17648564,3119.6,3119.3,0.113464]
[1720663625510,0.06540104,3119.6,3119.3,0.113464]
[1720663626310,0.30081983,3119.8,3119.3,0.113464]
[1720663626482,5.99342279,3120.0,3119.3,0.113464]
[1720663626483,0.065685,3119.5,3119.3,0.113464]
[1720663626683,5.99342279,3120.0,3119.3,0.113464]
[1720663626878,0.06559462,3119.4,3119.3,0.113464]
[1720663627580,0.04541536,3119.8,3119.3,0.113464]
[1720663627781,0.06521134,3119.4,3119.3,0.113464]
[1720663628002,5.08423665,3119.4,3119.3,0.113464]
[1720663628322,5.14978785,3119.4,3119.3,0.113464]
[1720663628527,8.69978785,3119.4,3119.3,0.113464]
[1720663628726,11.14228785,3119.4,3119.3,0.113464]
[1720663629038,10.03122233,3119.4,3119.3,0.113464]
[1720663629334,10.59255843,3119.4,3119.3,0.113464]
[1720663629484,4.20845182,3119.4,3119.3,0.113464]
[1720663629690,3.61928069,3119.4,3119.3,0.113464]
[1720663630333,1.17678069,3119.4,3119.3,0.113464]
[1720663630539,0.0655512,3119.4,3119.3,0.113464]
[1720663630938,0.33472279,3120.0,3119.3,0.113464]
[1720663631115,0.06533943,3119.4,3119.3,2.482664]
[1720663631312,2.3849,3120.6,3119.3,2.9298304]
[1720663631313,3.71874075,3120.4,3119.3,2.9298304]
[1720663631505,1.1562736,3120.3,3119.3,2.9298304]
[1720663631702,0.04541536,3120.2,3119.3,2.9298304]
[1720663632003,0.06536819,3120.1,3119.3,2.9298304]
[1720663632226,0.04541536,3120.0,3119.3,2.9298304]
[1720663632544,0.11063236,3120.0,3119.3,0.113464]
[1720663632705,2.53953236,3120.0,3119.3,0.113464]
[1720663632911,1.11100644,3119.9,3119.3,0.113464]
[1720663633255,1.22204227,3119.8,3119.3,0.113464]
[1720663633556,1.11111759,3119.7,3119.3,0.113464]
[1720663633705,1.11111759,3119.6,3119.3,0.113464]
[1720663633912,0.04541536,3119.5,3119.3,0.063464]
[1720663634368,0.06530609,3119.4,3119.3,0.063464]
[1720663634659,5.71080609,3119.4,3119.3,0.063464]
[1720663634807,7.39760414,3119.4,3119.3,0.063464]
[1720663635449,1.75210414,3119.4,3119.3,0.063464]
[1720663635657,0.06530609,3119.4,3119.3,0.063464]
[1720663635858,1.1111451,3119.6,3119.3,0.063464]
[1720663636019,0.06511571,3119.4,3119.3,0.063464]
[1720663636354,2.8051,3119.4,3119.3,0.063464]
[1720663636565,2.8051,3119.4,3117.7,1.989]
[1720663636566,5.6391,3119.3,3117.3,2.3406]
[1720663636725,5.6391,3119.3,3116.6,9.05618246]
[1720663636726,3.384,3118.5,3116.6,5.5681812]
[1720663636925,1.989,3118.6,3116.6,5.5681812]
[1720663636926,3.384,3118.3,3116.7,1.11702487]
[1720663637126,7.54056046,3118.2,3116.6,2.3406]
[1720663637369,1.1111451,3118.1,3116.8,1.989]
[1720663637664,0.06492454,3118.0,3116.9,0.1989]
[1720663637839,0.04541536,3117.9,3116.9,0.1989]
[1720663638037,0.06490791,3117.9,3116.9,0.1989]
[1720663638829,0.06490791,3117.9,3116.6,2.3406]
[1720663639457,5.72891536,3118.2,3116.6,5.3406]
[1720663639655,0.06489128,3117.8,3116.7,3.0]
[1720663639839,5.72891536,3118.2,3116.6,2.3406]
[1720663640044,0.06487464,3117.7,3116.6,2.3406]
[1720663640350,0.04541536,3117.7,3116.7,0.53406]
[1720663640550,0.064858,3117.6,3116.8,2.72616256]
[1720663640978,3.0,3118.4,3116.9,3.0]
[1720663641665,3.44863828,3118.3,3116.9,3.0]
[1720663641866,0.06463828,3118.3,3116.9,3.06415662]
[1720663642068,2.9214,3118.6,3117.0,0.57261566]
[1720663642310,2.53971536,3119.2,3117.3,2.3621]
[1720663642514,2.53971536,3119.2,3117.7,2.662]
[1720663642515,2.4943,3119.2,3117.7,2.662]
[1720663642790,0.06485614,3119.1,3117.8,3.0]
[1720663642954,0.06485614,3119.1,3117.9,0.5662]
[1720663643155,0.06483227,3119.0,3118.0,0.06413609]
[1720663643351,0.06483227,3119.0,3117.9,0.5662]
[1720663643609,0.04541536,3118.9,3117.8,3.0]
[1720663643900,0.04541536,3118.9,3117.3,5.3621]
[1720663644107,0.06502397,3118.8,3117.3,5.3621]
[1720663644255,0.04541536,3118.7,3117.3,5.3621]
[1720663644653,2.3198,3119.4,3117.3,5.3621]
[1720663644859,0.06463834,3118.6,3117.4,0.53621]
[1720663645072,3.384,3119.1,3117.4,3.0]
[1720663645407,0.06461041,3118.5,3117.3,2.3121]
[1720663645588,3.384,3118.7,3117.3,2.3121]
[1720663645904,0.06488553,3118.4,3116.4,2.662]
[1720663646083,0.04541536,3118.3,3116.4,2.662]
[1720663646397,3.49398472,3118.3,3116.4,2.662]
[1720663646573,3.384,3118.1,3116.4,2.662]
[1720663646777,0.11027444,3118.0,3116.4,2.662]
[1720663647182,0.11027444,3118.0,3116.5,3.0]
[1720663647492,0.04541536,3117.9,3116.6,0.5662]
[1720663647696,2.44700005,3117.9,3116.6,0.5662]
[1720663649206,2.17200005,3117.9,3116.6,0.5662]
[1720663650473,5.55600005,3117.9,3116.1,0.113464]
[1720663650627,8.55600005,3117.9,3116.1,0.113464]
[1720663651130,3.384,3117.7,3116.1,0.113464]
[1720663651485,3.384,3117.5,3116.1,0.113464]
[1720663651682,4.726643,3117.6,3116.1,0.113464]
[1720663651683,3.384,3117.3,3116.1,0.113464]
[1720663652109,8.81468379,3117.2,3116.1,0.113464]
[1720663652422,3.384,3117.0,3116.1,0.113464]
[1720663652725,3.384,3116.8,3116.1,0.113464]
[1720663653081,0.06410052,3116.7,3116.1,0.113464]
[1720663653436,0.34481005,3116.6,3116.1,0.113464]
[1720663653579,0.06410052,3116.7,3116.1,0.113464]
[1720663654095,3.0,3116.9,3116.1,0.113464]
[1720663654096,0.0638789,3116.6,3116.1,0.113464]
[1720663654329,2.3665,3117.2,3116.1,0.113464]
[1720663654523,0.34942744,3118.0,3116.1,0.113464]
[1720663654524,0.06421873,3116.5,3116.1,0.113464]
[1720663654752,3.384,3117.7,3116.2,0.06417008]
[1720663655053,0.63663799,3117.6,3116.2,0.38193349]
[1720663655216,0.63663799,3117.6,3116.3,0.06416917]
[1720663655625,0.06406799,3117.6,3116.3,0.06416917]
[1720663655813,0.06406799,3117.6,3116.4,2.662]
[1720663656035,0.06406799,3117.6,3116.5,3.0]
[1720663657334,0.06406799,3117.6,3116.2,0.31776341]
[1720663659727,0.06406799,3117.6,3116.3,0.06416728]
[1720663660359,0.06406799,3117.6,3116.2,0.31776341]
[1720663660659,0.06406799,3117.6,3116.3,0.89953863]
[1720663661256,0.06406799,3117.6,3116.3,0.96369745]
[1720663661759,0.06406799,3117.6,3116.4,2.662]
[1720663662065,0.06406799,3117.6,3116.5,3.06415882]
[1720663662274,2.4963,3118.3,3116.8,2.662]
[1720663662438,2.4963,3119.5,3117.4,2.662]
[1720663662787,0.06244061,3118.2,3117.5,3.06413799]
[1720663662921,2.4963,3119.5,3117.8,2.662]
[1720663663126,2.4963,3119.5,3117.9,3.57768974]
[1720663663127,2.74593,3119.5,3117.9,3.57768974]
[1720663663316,2.74593,3119.5,3118.2,2.662]
[1720663663546,2.74593,3119.5,3118.3,3.06412519]
[1720663663719,2.74593,3119.5,3118.3,3.0]
[1720663663940,2.74593,3119.5,3118.3,3.06412519]
[1720663664119,2.74593,3119.5,3118.4,0.57261252]
[1720663665152,0.06277557,3119.4,3118.4,0.57261252]
[1720663666232,0.06277557,3119.4,3118.5,0.06412516]
[1720663666432,2.3273,3120.0,3118.5,0.06412516]
[1720663666638,0.06313669,3119.9,3118.5,0.06412516]
[1720663666851,0.23904367,3119.9,3118.5,0.06412516]
[1720663667253,0.23904367,3119.9,3118.5,0.06411957]
[1720663667480,3.62304367,3119.9,3118.4,0.57261252]
[1720663667786,3.62304367,3119.9,3118.3,3.003695]
[1720663667939,3.384,3119.7,3118.3,0.003695]
[1720663668372,0.06314087,3119.6,3118.3,0.003695]
[1720663668573,2.3273,3119.3,3118.3,0.003695]
[1720663668967,0.06312312,3119.2,3118.3,0.003695]
[1720663669137,0.57744231,3119.1,3118.3,0.003695]
[1720663669342,0.64047296,3119.1,3118.3,0.003695]
[1720663671291,4.02447296,3119.1,3118.3,0.003695]
[1720663671850,3.384,3118.9,3118.3,0.003695]
[1720663672203,5.8068,3118.6,3118.3,0.003695]
[1720663672488,0.64307684,3118.5,3118.3,0.003695]
[1720663674113,4.02707684,3118.5,3118.3,0.003695]
[1720663674247,3.934,3118.4,3118.3,0.003695]
[1720663674452,3.99665989,3118.4,3118.3,0.003695]
[1720663674683,6.99665989,3118.4,3118.3,0.003695]
[1720663674991,7.99667388,3118.4,3118.3,0.003695]
[1720663678667,10.42177388,3118.4,3118.3,0.003695]
[1720663679072,11.53351747,3118.4,3118.3,0.003695]
[1720663680216,3.48777388,3118.4,3118.3,0.003695]
[1720663680417,0.06265989,3118.4,3118.3,0.003695]
[1720663680716,3.384,3118.4,3118.3,0.003695]
[1720663680919,3.44533916,3118.4,3118.3,0.003695]
[1720663682118,3.99533916,3118.4,3118.3,0.003695]
[1720663682436,7.17097308,3118.4,3118.3,0.003695]
[1720663682610,11.28270877,3118.4,3118.3,0.003695]
[1720663683078,10.17097308,3118.4,3118.3,0.003695]
[1720663683473,3.78697308,3118.4,3118.3,0.003695]
[1720663683707,0.06133916,3118.4,3118.3,0.003695]
[1720663683874,3.384,3118.7,3118.3,0.003695]
[1720663683875,3.0,3118.6,3118.3,0.003695]
[1720663684070,0.06138202,3118.4,3118.3,0.003695]
[1720663684320,3.384,3118.5,3118.3,0.003695]
[1720663684482,0.06138202,3118.4,3118.3,0.003695]
[1720663684687,4.08992022,3118.4,3118.3,0.003695]
[1720663685008,4.63992022,3118.4,3118.3,0.003695]
[1720663685372,7.11602022,3118.4,3118.3,0.003695]
[1720663685767,8.22766514,3118.4,3118.3,0.003695]
[1720663686173,7.11602022,3118.4,3118.3,0.003695]
[1720663689485,8.22758946,3118.4,3118.3,0.003695]
[1720663689806,11.22770877,3118.4,3118.3,0.003695]
[1720663689973,8.22770877,3118.4,3118.3,0.003695]
[1720663690180,5.75160877,3118.4,3118.3,0.003695]
[1720663690387,5.20160877,3118.4,3118.3,0.003695]
[1720663690820,4.08992022,3118.4,3118.3,0.003695]
[1720663691314,5.20150409,3118.4,3118.3,0.003695]
[1720663692118,5.75150409,3118.4,3118.3,0.003695]
[1720663693531,5.75162029,3118.4,3118.3,0.003695]
[1720663694104,4.63992022,3118.4,3118.3,0.003695]
[1720663694410,5.75156144,3118.4,3118.3,0.003695]
[1720663695330,6.08622943,3118.4,3118.3,0.003695]
[1720663695896,2.15222943,3118.4,3118.3,0.003695]
[1720663696109,1.50769123,3118.4,3118.3,0.003695]
[1720663696317,0.39605001,3118.4,3118.3,0.003695]
[1720663696708,0.33466799,3118.4,3118.3,0.003695]
[1720663697597,0.33466799,3118.4,3117.2,1.919095]
[1720663697598,1.44623329,3118.4,3117.2,1.919095]
[1720663697905,1.1115653,3118.3,3117.2,1.919095]
[1720663698093,1.1115653,3118.2,3117.3,0.1919095]
[1720663698294,1.16868578,3118.2,3116.2,0.06415429]
[1720663698530,1.16868578,3118.2,3116.5,1.997]
[1720663698531,1.1115653,3118.1,3116.5,1.997]
[1720663698838,1.1115653,3118.1,3116.3,2.663]
[1720663698839,1.50337066,3118.1,3116.3,2.663]
[1720663699133,1.1115653,3118.0,3116.3,2.663]
[1720663699319,1.16865252,3118.0,3116.3,2.663]
[1720663699527,1.1115653,3117.9,3116.4,0.2663]
[1720663699696,1.16863589,3117.9,3116.4,3.2663]
[1720663699900,1.1115653,3117.8,3116.4,3.2663]
[1720663700097,1.16861925,3117.8,3116.4,3.2663]
[1720663700338,1.1115653,3117.7,3116.4,3.2663]
[1720663700574,1.1115653,3117.7,3116.6,2.325]
[1720663700839,0.33470151,3118.1,3117.1,2.325]
[1720663701056,1.11151268,3118.0,3117.1,2.325]
[1720663701221,0.05515697,3118.0,3117.5,2.325]
[1720663701539,0.33470151,3118.1,3117.6,0.4988]
[1720663701746,0.33470151,3118.1,3117.6,0.56293944]
[1720663702105,0.33470151,3118.1,3117.6,3.56293944]
[1720663702605,0.33470151,3118.1,3117.6,3.4988]
[1720663703116,0.33470151,3118.1,3117.6,0.4988]
[1720663703317,0.33470151,3118.1,3117.1,2.4848]
[1720663703513,1.11156962,3118.0,3117.1,2.4848]
[1720663703702,1.11156962,3117.9,3117.1,2.4848]
[1720663704041,1.11164487,3117.8,3117.1,2.4848]
[1720663704246,0.05490721,3117.9,3117.1,2.4848]
[1720663704411,0.05489166,3117.7,3117.1,2.4848]
[1720663704616,0.05497729,3117.8,3116.7,2.4848]
[1720663704925,1.16688459,3117.7,3116.8,0.51478]
[1720663705125,1.11167406,3117.6,3116.4,0.2663]
[1720663705437,1.1664837,3117.6,3116.4,0.2663]
[1720663705636,1.11167406,3117.5,3116.4,0.2663]
[1720663706016,0.05477359,3117.4,3116.4,0.2663]
[1720663706533,3.71870151,3118.1,3116.4,0.2663]
[1720663706739,0.05508341,3117.3,3116.4,0.2663]
[1720663707056,0.33470151,3118.1,3116.4,0.2663]
[1720663707337,1.11167508,3118.0,3116.6,2.663]
[1720663707501,0.05516557,3118.0,3116.7,3.0]
[1720663707702,0.05516557,3118.0,3116.9,2.3981]
[1720663707944,0.33470151,3118.1,3116.9,5.3981]
[1720663708613,0.05503574,3118.0,3116.9,5.3981]
[1720663708820,1.11161129,3117.9,3116.9,5.3981]
[1720663709032,0.05503574,3118.0,3116.9,5.3981]
[1720663709330,1.16668969,3117.9,3116.9,5.3981]
[1720663709647,1.11163706,3117.8,3116.9,5.3981]
[1720663709947,0.33470151,3118.1,3116.9,5.3981]
[1720663710241,0.05512137,3117.7,3116.9,5.3981]
[1720663710448,1.11167212,3118.0,3116.9,5.3981]
[1720663710702,0.33470151,3118.1,3116.9,5.99454]
[1720663710840,0.05515464,3117.9,3116.9,5.99454]
[1720663711277,0.33470151,3118.1,3116.9,5.99454]
[1720663711588,1.16680104,3118.0,3116.9,5.99454]
[1720663711878,1.11162977,3117.9,3116.9,5.99454]
[1720663712183,0.05517127,3118.0,3117.0,0.656084]
[1720663712483,0.05512928,3117.9,3117.1,0.06415159]
[1720663712665,0.60970151,3118.1,3117.1,0.06415159]
[1720663713543,0.60970151,3118.1,3117.0,6.319084]
[1720663713742,1.11156266,3118.0,3117.1,0.8717184]
[1720663713965,0.05513162,3118.0,3117.1,0.8717184]
[1720663714278,0.60970151,3118.1,3117.1,0.8717184]
[1720663714501,1.11157694,3118.0,3117.1,0.8717184]
[1720663714664,0.05513162,3118.0,3117.1,0.8717184]
[1720663714868,1.11160914,3117.9,3117.2,0.71908024]
[1720663715069,0.0551666,3117.8,3117.2,0.71908024]
[1720663715257,0.60970151,3118.1,3117.2,0.71908024]
[1720663715456,0.05517452,3118.0,3117.2,0.71908024]
[1720663715763,0.05517452,3118.0,3117.3,0.0641513]
[1720663715952,0.60970151,3118.1,3117.3,0.0641513]
[1720663716158,0.60970151,3118.1,3117.2,0.71908024]
[1720663716667,0.60970151,3118.1,3117.3,0.06414513]
[1720663716866,0.275,3118.1,3117.4,2.4667]
[1720663717069,0.275,3118.1,3117.5,0.31722844]
[1720663717480,0.275,3118.1,3117.6,2.79181913]
[1720663717679,0.275,3118.1,3117.7,4.11671727]
[1720663717982,0.275,3118.1,3117.9,2.663]
[1720663718154,0.275,3118.1,3118.0,4.11670108]
[1720663718359,0.275,3118.1,3118.0,4.045978]
[1720663718798,0.33471915,3119.1,3118.0,5.16261231]
[1720663718964,0.33471915,3119.1,3118.2,2.3072]
[1720663719163,0.33471915,3119.1,3118.3,0.06412283]
[1720663720462,0.33471915,3119.1,3118.2,2.3072]
[1720663720668,0.05573766,3119.0,3118.3,0.53072]
[1720663720863,0.05573766,3119.0,3118.3,3.53072]
[1720663721192,0.05573766,3119.0,3118.4,0.06412283]
[1720663722771,2.3402,3120.3,3118.5,2.2504]
[1720663723000,0.05574004,3118.9,3118.6,0.06411745]
[1720663723175,0.33473055,3119.7,3118.6,0.06411745]
[1720663723176,0.33473055,3119.7,3118.7,0.23145175]
[1720663723371,0.33473055,3119.7,3118.8,0.06411745]
[1720663723576,0.33473055,3119.7,3118.7,0.2955692]
[1720663723917,0.33473055,3119.7,3118.8,0.06411744]
[1720663724220,0.33473055,3119.7,3118.7,0.23145175]
[1720663724373,2.3402,3120.3,3118.8,0.38726262]
[1720663724579,0.33477103,3120.1,3118.9,2.3232]
[1720663724780,0.33477103,3120.1,3119.1,2.663]
[1720663725110,0.33477103,3120.1,3119.2,3.0]
[1720663725311,0.33477103,3120.1,3118.9,5.3232]
[1720663725312,0.33477103,3120.1,3119.3,0.3]
[1720663725667,0.33477103,3120.1,3118.9,5.3232]
[1720663725668,0.33477103,3120.1,3119.0,3.0]
[1720663725917,0.33477103,3120.1,3118.9,5.3232]
[1720663726482,0.05415726,3120.0,3118.9,5.3232]
[1720663727919,2.35425726,3120.0,3118.9,5.3232]
[1720663729111,2.35425726,3120.0,3118.7,2.89445175]
[1720663729112,5.35425726,3120.0,3118.7,0.23145175]
[1720663729446,0.90730283,3119.9,3118.5,2.369]
[1720663729850,0.05389347,3119.8,3118.5,2.369]
[1720663730207,0.05389347,3119.8,3118.3,2.663]
[1720663730546,0.05389347,3119.8,3118.4,3.0]
[1720663730721,0.43451963,3119.7,3118.5,0.57271241]
[1720663730912,0.90730283,3119.9,3118.5,0.57271241]
[1720663731114,0.05374272,3119.6,3118.5,0.57271241]
[1720663731311,0.90730283,3119.9,3118.5,0.57271241]
[1720663735228,2.3001,3120.0,3118.6,2.2624]
[1720663735420,2.3001,3120.0,3118.7,0.06411508]
[1720663735615,0.05387117,3119.9,3118.7,0.06411508]
[1720663735954,2.3001,3120.0,3118.7,0.06411508]
[1720663736263,0.05368193,3119.8,3118.8,0.06411344]
[1720663736557,0.05366532,3119.7,3118.9,0.27271134]
[1720663736734,2.3001,3120.0,3118.9,0.27271134]
[1720663736956,0.05364871,3119.6,3118.9,0.27271134]
[1720663737255,2.3001,3120.0,3118.9,0.27271134]
[1720663737620,0.05338464,3119.9,3118.9,0.27271134]
[1720663737825,0.05338464,3119.9,3119.0,0.32727113]
[1720663738953,0.05338464,3119.9,3119.0,0.3913787]
[1720663739120,0.33477103,3120.1,3119.0,0.32727113]
[1720663739324,0.05367445,3119.8,3119.0,0.32727113]
[1720663739531,0.33477103,3120.1,3119.0,0.32727113]
[1720663739743,0.05365784,3119.7,3119.0,0.32727113]
[1720663739943,0.33477103,3120.1,3119.0,0.32727113]
[1720663740118,0.05364122,3119.6,3119.0,0.32727113]
[1720663740321,0.33477103,3120.1,3119.0,0.32727113]
[1720663740523,0.05362461,3119.5,3119.1,2.72710613]
[1720663740757,0.33477103,3120.1,3119.3,2.4095]
[1720663742420,9.7019,3120.8,3119.4,0.06409823]
[1720663742738,0.33476543,3120.5,3119.5,2.663]
[1720663742919,0.33476543,3120.5,3119.6,3.06409314]
[1720663743370,0.05397162,3120.4,3120.0,2.3679]
[1720663743664,2.3408,3121.3,3120.1,3.70809]
[1720663743973,0.33476372,3121.1,3120.7,2.663]
[1720663744259,2.3408,3122.2,3120.8,3.0640726]
[1720663744464,0.3347202,3121.5,3120.8,3.0640726]
[1720663744780,2.3408,3122.2,3120.9,2.3443]
[1720663744966,0.05459217,3121.4,3121.1,2.663]
[1720663745173,0.33471099,3121.9,3121.2,3.0]
[1720663745462,7.44,3122.7,3121.5,2.663]
[1720663745634,0.33472511,3122.7,3121.6,3.0]
[1720663745837,5.80347191,3122.6,3121.0,6.20383726]
[1720663746039,0.6138197,3122.5,3121.1,1.59481373]
[1720663746425,0.05498634,3122.4,3121.1,1.59481373]
[1720663746625,2.3645,3122.6,3121.1,1.59481373]
[1720663748076,2.384,3122.4,3121.1,1.59481373]
[1720663748226,2.384,3122.4,3121.0,0.54083726]
[1720663748422,0.05492458,3122.3,3121.0,0.54083726]
[1720663749039,0.05492458,3122.3,3121.0,3.26790445]
[1720663749239,0.05492458,3122.3,3121.0,3.20383726]
[1720663749443,0.29881704,3122.3,3120.6,2.663]
[1720663749755,0.29881704,3122.3,3120.7,3.0]
[1720663750345,0.05492458,3122.3,3120.7,3.06407174]
[1720663752079,0.05492458,3122.3,3120.7,3.0]
[1720663752929,2.384,3122.4,3120.7,3.0]
[1720663753430,2.384,3122.4,3121.0,2.663]
[1720663753639,2.384,3122.4,3121.1,3.0]
[1720663753842,0.05521453,3122.3,3121.2,0.5663]
[1720663754659,0.05521453,3122.3,3120.7,3.06406642]
[1720663755873,0.05521453,3122.3,3120.7,3.0]
[1720663756286,0.05521453,3122.3,3120.8,0.06407166]
[1720663756444,2.3244,3122.2,3120.7,3.0]
[1720663756645,2.4073,3122.0,3120.8,0.5663]
[1720663756865,2.4073,3122.0,3120.2,2.663]
[1720663757085,2.4073,3121.8,3120.1,0.50309]
[1720663757238,3.384,3121.7,3120.1,0.50309]
[1720663757582,0.55,3121.6,3119.8,2.663]
[1720663757884,2.4073,3121.5,3119.8,2.663]
[1720663758094,2.4073,3121.5,3119.9,0.06408788]
[1720663758250,0.05464228,3121.4,3119.9,0.06408788]
[1720663758443,0.05464228,3121.4,3119.9,3.06408788]
[1720663758673,0.05464228,3121.4,3120.0,0.57270879]
[1720663760191,0.05464228,3121.4,3120.2,2.663]
[1720663760479,2.4073,3121.5,3120.3,3.0]
[1720663760905,0.05476339,3121.4,3120.3,3.0]
[1720663761108,0.05476339,3121.4,3120.4,0.06408148]
[1720663761327,0.05476339,3121.4,3120.5,0.30640815]
[1720663763699,2.267,3121.3,3120.0,0.57270879]
[1720663764127,2.267,3121.1,3119.7,7.4]
[1720663764338,2.267,3121.0,3119.1,11.53706259]
[1720663764644,2.267,3120.8,3119.1,9.8632]
[1720663764936,0.0546781,3120.7,3119.2,2.23232]
[1720663765591,2.474,3120.6,3119.2,2.23232]
[1720663765790,0.05443034,3120.5,3119.2,2.23232]
[1720663766699,0.05443034,3120.5,3119.2,5.23232]
[1720663767949,2.3067,3120.4,3119.2,5.23232]
[1720663768264,0.29025153,3120.3,3119.2,5.23232]
[1720663768435,0.29025153,3120.3,3118.7,3.0]
[1720663768649,0.23611303,3120.3,3118.7,3.0]
[1720663769354,0.05408146,3120.2,3118.6,3.0]
[1720663769715,5.8094,3120.0,3118.1,6.63877421]
[1720663770067,2.4254,3119.8,3118.1,2.663]
[1720663770359,2.4254,3119.8,3118.2,0.2663]
[1720663770360,0.63483134,3119.7,3118.2,0.2663]
[1720663770862,3.0442,3119.6,3118.2,0.2663]
[1720663771072,3.0442,3119.6,3117.7,5.0527]
[1720663771218,0.05372252,3119.5,3117.7,5.0527]
[1720663771417,3.0442,3119.6,3117.7,5.0527]
[1720663771647,3.0442,3119.6,3117.7,2.663]
[1720663771819,3.0442,3119.6,3117.8,0.27271252]
[1720663771820,2.4942,3119.6,3117.8,0.27271252]
[1720663772019,2.4942,3119.6,3118.1,2.663]
[1720663772256,2.4942,3119.6,3118.2,3.0]
[1720663772257,0.05363922,3119.5,3118.2,3.0]
[1720663772643,2.4942,3119.6,3118.2,3.0]
[1720663772844,2.4942,3119.6,3118.3,0.57271199]
[1720663773157,0.0536416,3119.5,3118.3,0.57271199]
[1720663773516,0.0536416,3119.5,3118.2,3.0]
[1720663773718,2.4051,3119.4,3117.8,0.27271252]
[1720663773944,2.4051,3119.4,3117.5,5.72712759]
[1720663774256,0.05362265,3119.3,3117.5,5.72712768]
[1720663774457,0.05362265,3119.3,3117.5,2.72712768]
[1720663774662,2.4051,3119.2,3117.5,2.663]
[1720663775069,2.3709,3119.0,3117.5,2.663]
[1720663775363,2.3709,3118.8,3117.1,2.663]
[1720663776823,2.3709,3118.8,3117.2,3.06414042]
[1720663777024,2.3709,3118.8,3117.3,0.06414042]
[1720663777440,2.3709,3118.8,3117.2,3.0]
[1720663777850,2.3709,3118.8,3117.3,0.06414039]
[1720663778164,2.3709,3118.8,3117.5,2.663]
[1720663778324,2.3709,3118.8,3117.6,3.0]